bitfinex/quotes_SOLUSD_20240705
["timestamp","ask_amount","ask_price","bid_price","bid_amount"]
[1720189927813,7.6105,131.4,131.33,19.0349]
[1720189928131,7.61,131.41,131.35,26.6457]
[1720189928302,43.89,131.44,131.37,19.0299]
[1720189928498,20.0,131.43,131.37,19.0299]
[1720189928831,27.6086,131.43,131.38,7.6112]
[1720189928992,20.0,131.43,131.36,7.6123]
[1720189929190,5.13364949,131.45,131.36,7.6123]
[1720189929191,20.0,131.44,131.36,7.6123]
[1720189929440,7.609,131.43,131.37,7.6117]
[1720189929625,27.6093,131.42,131.37,7.6117]
[1720189929836,7.6093,131.42,131.37,7.6117]
[1720189930033,20.0,131.41,131.36,26.6434]
[1720189930721,20.0,131.41,131.35,7.6131]
[1720189931043,7.6099,131.41,131.36,7.6123]
[1720189931225,20.0,131.4,131.37,7.6119]
[1720189931738,20.0,131.41,131.37,7.6119]
[1720189933156,20.0,131.41,131.38,7.6113]
[1720189933341,20.0,131.42,131.38,26.6399]
[1720189933517,20.0,131.42,131.39,7.6109]
[1720189934021,27.6094,131.42,131.36,23.8433]
[1720189934222,27.6094,131.42,131.36,16.2311]
[1720189934441,27.6094,131.42,131.37,7.6119]
[1720189935630,27.6094,131.42,131.36,23.8436]
[1720189936145,27.6094,131.42,131.37,7.6118]
[1720189936319,20.0,131.42,131.38,7.6113]
[1720189936525,20.0,131.42,131.39,7.6108]
[1720189936934,7.91759584,131.43,131.36,16.2311]
[1720189936935,7.91759584,131.43,131.41,7.6097]
[1720189937126,7.6069,131.46,131.41,7.6097]
[1720189937432,15.5210684,131.46,131.41,7.6097]
[1720189938148,15.5210684,131.46,131.4,19.0245]
[1720189938351,7.9141684,131.46,131.41,7.6094]
[1720189938652,20.0,131.45,131.41,7.6094]
[1720189939241,27.6076,131.45,131.4,19.0245]
[1720189939747,20.0,131.45,131.38,13.7209]
[1720189939920,7.6112,131.39,131.35,6.0114]
[1720189940124,20.0,131.45,131.34,7.6136]
[1720189940125,19.0229,131.43,131.34,7.6136]
[1720189940330,7.6104,131.4,131.35,7.6129]
[1720189940531,20.0,131.39,131.35,7.6129]
[1720189940821,20.0,131.39,131.36,7.6126]
[1720189941137,20.0,131.39,131.35,7.6131]
[1720189941448,27.7803,131.4,131.35,7.6131]
[1720189941748,0.17,131.39,131.35,7.6131]
[1720189942346,0.17,131.39,131.32,40.2201]
[1720189942535,0.17,131.39,131.34,7.6133]
[1720189942844,0.17,131.39,131.35,7.613]
[1720189943048,20.0,131.4,131.37,7.612]
[1720189943343,5.05567629,131.47,131.36,26.6437]
[1720189943344,20.17,131.41,131.36,26.6437]
[1720189943561,0.17,131.41,131.35,7.6131]
[1720189943851,7.611,131.39,131.34,26.6481]
[1720189944032,20.0,131.38,131.34,26.6481]
[1720189944234,20.0,131.38,131.31,26.653]
[1720189944432,0.17,131.37,131.32,7.6148]
[1720189944645,0.17,131.37,131.33,7.6144]
[1720189944846,27.7821,131.37,131.32,7.6147]
[1720189945026,7.7821,131.37,131.32,7.6147]
[1720189945348,20.0,131.36,131.34,7.6137]
[1720189945668,20.0,131.36,131.35,7.6132]
[1720189945825,20.0,131.38,131.35,26.646]
[1720189946154,12.69088188,131.41,131.35,26.6458]
[1720189946155,0.17,131.39,131.35,26.6458]
[1720189946855,14.144,131.42,131.37,7.612]
[1720189947148,73.9340684,131.46,131.37,19.0292]
[1720189947346,22.01832916,131.45,131.37,19.0292]
[1720189947855,7.6092,131.42,131.37,26.641]
[1720189948186,7.91514126,131.44,131.36,6.2702]
[1720189948328,41.86252785,131.48,131.42,19.0227]
[1720189948655,7.91240098,131.46,131.42,19.0227]
[1720189948948,7.91240098,131.46,131.43,7.6085]
[1720189949523,7.91240098,131.46,131.42,19.0227]
[1720189950149,15.51930098,131.46,131.42,19.0227]
[1720189950351,7.6079,131.45,131.39,26.6369]
[1720189950539,15.51930098,131.46,131.39,19.0262]
[1720189950745,7.91240098,131.46,131.39,19.0262]
[1720189950936,7.91240098,131.46,131.39,26.6369]
[1720189951245,36.33722314,131.46,131.36,26.6428]
[1720189951453,7.6098,131.41,131.36,26.6428]
[1720189951652,20.17,131.4,131.33,19.0352]
[1720189951851,0.17,131.4,131.35,26.6458]
[1720189952158,27.7805,131.4,131.35,26.6458]
[1720189952631,20.17,131.4,131.35,26.6458]
[1720189952831,20.17,131.4,131.36,7.6126]
[1720189953039,20.17,131.4,131.37,7.612]
[1720189953347,20.0,131.39,131.37,7.612]
[1720189953538,20.0,131.41,131.39,7.6105]
[1720189953738,20.0,131.41,131.39,19.0273]
[1720189953934,20.0,131.45,131.39,26.6381]
[1720189954154,27.6078,131.45,131.39,26.6381]
[1720189954331,7.6078,131.45,131.4,7.6103]
[1720189954536,7.608,131.44,131.39,19.0273]
[1720189954948,7.6086,131.43,131.39,19.0273]
[1720189955250,7.6086,131.43,131.38,7.6111]
[1720189955434,7.6076,131.45,131.39,7.6108]
[1720189955633,27.6084,131.44,131.38,19.0273]
[1720189955853,20.0,131.44,131.35,19.0318]
[1720189956040,7.6105,131.4,131.35,7.6131]
[1720189956229,20.17,131.39,131.34,19.0344]
[1720189956435,20.17,131.39,131.36,7.6125]
[1720189956939,0.17,131.39,131.36,26.6441]
[1720189957458,0.17,131.4,131.36,26.6441]
[1720189957947,0.17,131.4,131.32,44.7036]
[1720189957948,20.0,131.41,131.39,7.6107]
[1720189958154,27.6088,131.43,131.38,26.6391]
[1720189958545,7.6093,131.42,131.36,19.0315]
[1720189958751,20.0,131.41,131.36,26.6439]
[1720189959064,27.91532483,131.41,131.36,26.6439]
[1720189959361,27.91532483,131.41,131.37,7.612]
[1720189959537,27.91532483,131.41,131.38,7.6114]
[1720189959736,20.0,131.41,131.39,7.6108]
[1720189959937,35.52350472,131.43,131.38,26.64]
[1720189960144,7.6091,131.42,131.38,19.0287]
[1720189960335,20.0,131.41,131.38,19.0287]
[1720189960544,35.52370472,131.43,131.38,19.0287]
[1720189960746,35.52370472,131.43,131.38,26.6398]
[1720189961347,35.52360472,131.43,131.38,19.0287]
[1720189961543,35.52360472,131.43,131.38,26.6399]
[1720189961750,27.91490472,131.43,131.39,7.6107]
[1720189962047,7.91490472,131.43,131.4,7.6101]
[1720189962259,7.6065,131.47,131.41,7.6097]
[1720189962554,7.91322673,131.45,131.41,7.6097]
[1720189963267,7.91322673,131.45,131.4,19.0244]
[1720189963437,20.0,131.44,131.4,26.6342]
[1720189963637,20.0,131.44,131.41,7.6095]
[1720189964456,20.0,131.44,131.4,19.0244]
[1720189964679,27.6081,131.44,131.4,19.0244]
[1720189965168,20.0,131.44,131.4,19.0244]
[1720189965334,20.0,131.44,131.4,26.6344]
[1720189965536,27.6081,131.44,131.39,7.6108]
[1720189965843,0.17,131.43,131.38,26.6397]
[1720189966251,7.6094,131.42,131.37,7.6118]
[1720189966556,20.17,131.41,131.37,7.6118]
[1720189966859,0.17,131.43,131.39,7.6106]
[1720189967467,7.7789,131.43,131.38,26.6387]
[1720189967672,20.0,131.42,131.38,26.6389]
[1720189967973,20.0,131.42,131.39,7.6108]
[1720189968267,20.17,131.43,131.39,7.6108]
[1720189968565,20.0,131.44,131.4,26.6359]
[1720189968775,20.0,131.44,131.41,7.6096]
[1720189968956,20.0,131.44,131.37,19.0293]
[1720189969151,0.17,131.43,131.39,7.6109]
[1720189969373,27.6084,131.44,131.39,7.6109]
[1720189970547,20.0,131.44,131.38,19.0275]
[1720189970763,27.6082,131.44,131.39,7.6105]
[1720189971859,20.0,131.44,131.39,7.6105]
[1720189972078,27.6082,131.44,131.38,19.0275]
[1720189972244,27.6082,131.44,131.39,7.6105]
[1720189972860,7.91255399,131.43,131.4,19.0253]
[1720189973059,20.0,131.42,131.41,7.6094]
[1720189973256,20.0,131.42,131.4,26.6354]
[1720189973477,20.0,131.42,131.41,7.6097]
[1720189973685,20.0,131.42,131.4,26.6354]
[1720189973846,20.0,131.44,131.4,26.6354]
[1720189974358,20.0,131.44,131.41,7.6096]
[1720189974973,20.0,131.44,131.4,26.6354]
[1720189976666,27.6081,131.44,131.4,19.0253]
[1720189976880,27.6081,131.44,131.39,7.6107]
[1720189977046,20.0,131.44,131.39,7.6107]
[1720189977246,27.6084,131.44,131.39,7.6107]
[1720189978049,20.0,131.44,131.4,7.6102]
[1720189978254,20.0,131.44,131.43,7.6086]
[1720189978451,7.91186964,131.45,131.44,7.608]
[1720189978682,61.5109,131.49,131.45,7.6074]
[1720189978878,7.91010453,131.48,131.44,26.6278]
[1720189979085,7.91010453,131.48,131.43,7.6084]
[1720189979385,7.91010453,131.48,131.44,7.6078]
[1720189979583,7.91010453,131.48,131.43,7.6083]
[1720189980184,7.91010453,131.48,131.44,7.6078]
[1720189980480,7.91010453,131.48,131.42,19.0216]
[1720189980697,46.5764,131.47,131.41,7.6092]
[1720189980986,7.6069,131.46,131.41,7.6092]
[1720189981172,38.97,131.47,131.38,6.4961]
[1720189981353,38.97,131.47,131.35,15.98]
[1720189981354,38.97,131.44,131.35,15.98]
[1720189981561,7.7789,131.43,131.37,7.6119]
[1720189981871,38.97,131.38,131.3,387.3]
[1720189982078,38.97,131.35,131.3,406.34]
[1720189982274,20.17,131.34,131.3,26.656]
[1720189982668,20.0,131.34,131.31,7.6154]
[1720189982870,20.0,131.34,131.3,19.04]
[1720189983486,20.0,131.34,131.31,7.6153]
[1720189984107,0.17,131.35,131.32,19.037]
[1720189984108,20.0,131.35,131.32,19.037]
[1720189984281,27.6121,131.37,131.32,26.6518]
[1720189984484,27.6121,131.37,131.32,19.037]
[1720189984798,0.17,131.36,131.32,19.037]
[1720189984981,0.17,131.36,131.32,26.6517]
[1720189985184,4.46114846,131.41,131.36,7.6126]
[1720189985495,5.08262539,131.41,131.3,38.0785]
[1720189985744,7.6093,131.42,131.35,19.0325]
[1720189985994,16.15610555,131.45,131.4,7.6099]
[1720189986194,7.6076,131.45,131.4,7.6099]
[1720189986570,7.6076,131.45,131.39,26.638]
[1720189987065,16.448,131.47,131.37,7.6115]
[1720189987066,7.6086,131.43,131.37,7.6115]
[1720189987798,20.0,131.42,131.37,7.6115]
[1720189988001,20.0,131.42,131.38,7.6113]
[1720189988293,20.0,131.42,131.39,7.6108]
[1720189988500,7.6076,131.45,131.39,7.6108]
[1720189988681,20.0,131.44,131.39,7.6108]
[1720189988994,20.0,131.44,131.42,7.6091]
[1720189989212,7.91339604,131.45,131.42,7.609]
[1720189989510,5.08880926,131.47,131.42,26.6318]
[1720189989820,7.91160554,131.47,131.42,26.6318]
[1720189990016,15.51800554,131.47,131.42,26.6318]
[1720189990312,7.91160554,131.47,131.42,26.6318]
[1720189990605,7.91160554,131.47,131.44,19.0194]
[1720189990912,0.1,131.49,131.45,7.6074]
[1720189991483,0.1,131.49,131.44,19.0194]
[1720189991888,7.7051,131.49,131.44,26.627]
[1720189992099,0.1,131.49,131.44,26.627]
[1720189992405,0.1,131.49,131.45,7.6074]
[1720189992588,20.1,131.49,131.45,7.6074]
[1720189992789,20.1,131.49,131.41,115.4016]
[1720189992790,20.0,131.48,131.46,26.6235]
[1720189993012,0.1,131.49,131.46,26.6235]
[1720189993599,0.1,131.49,131.47,7.6062]
[1720189993802,0.1,131.49,131.46,19.0171]
[1720189994104,0.1,131.49,131.48,19.0142]
[1720189994414,0.1,131.49,131.47,7.606]
[1720189994702,0.1,131.49,131.48,7.6057]
[1720189998004,0.1,131.49,131.48,123.7326]
[1720189998621,51.91113201,131.59,131.5,138.0227]
[1720189998622,13.09141769,131.59,131.5,138.0227]
[1720189998914,0.1,131.59,131.57,26.6009]
[1720189999306,0.1,131.59,131.56,7.6009]
[1720190000311,0.1,131.59,131.54,19.0044]
[1720190000493,20.1,131.59,131.56,19.0019]
[1720190000700,0.1,131.59,131.58,7.5999]
[1720190001610,0.8646939,131.64,131.61,7.5981]
[1720190002406,20.8646939,131.64,131.6,26.5946]
[1720190002588,20.8646939,131.64,131.61,7.5979]
[1720190002796,20.8646939,131.64,131.6,26.5947]
[1720190003520,28.4610939,131.64,131.59,7.5992]
[1720190003820,20.8646939,131.64,131.59,26.5974]
[1720190004115,0.17,131.63,131.6,7.5982]
[1720190004508,0.17,131.63,131.59,26.5974]
[1720190005225,7.7672,131.63,131.57,7.6003]
[1720190005531,20.0,131.62,131.59,7.5992]
[1720190005830,0.17,131.61,131.58,26.5995]
[1720190006122,20.8646939,131.64,131.6,7.5987]
[1720190006327,0.17,131.63,131.6,7.5987]
[1720190006503,0.17,131.63,131.6,26.5956]
[1720190006708,0.17,131.63,131.6,18.9969]
[1720190007035,0.17,131.63,131.6,26.5956]
[1720190007212,0.17,131.63,131.6,18.9969]
[1720190007409,0.17,131.63,131.6,26.5954]
[1720190007600,0.8646939,131.64,131.6,18.9969]
[1720190007801,0.17,131.63,131.61,7.5981]
[1720190008099,0.8646939,131.64,131.61,7.5981]
[1720190008817,0.8646939,131.64,131.62,18.9936]
[1720190009002,0.8646939,131.64,131.62,26.5909]
[1720190009425,0.8646939,131.64,131.63,7.597]
[1720190011112,0.8646939,131.64,131.63,29.7422]
[1720190011437,9.39e-05,131.64,131.63,29.7422]
[1720190011606,9.39e-05,131.64,131.63,129.7422]
[1720190012334,9.39e-05,131.64,131.63,29.7422]
[1720190014126,9.39e-05,131.64,131.63,7.597]
[1720190014331,9.39e-05,131.64,131.59,30.2991]
[1720190014537,9.39e-05,131.64,131.56,38.0035]
[1720190014709,0.1700939,131.64,131.56,38.0035]
[1720190015040,9.39e-05,131.64,131.57,100.0]
[1720190015211,9.39e-05,131.64,131.62,7.5974]
[1720190015528,9.39e-05,131.64,131.56,38.0035]
[1720190015763,27.5968939,131.64,131.58,26.5985]
[1720190016033,9.39e-05,131.64,131.6,18.9967]
[1720190016336,9.39e-05,131.64,131.56,138.0035]
[1720190016337,7.5964939,131.64,131.59,7.5992]
[1720190016643,20.17,131.63,131.59,7.5992]
[1720190016830,20.0,131.63,131.57,18.9999]
[1720190017036,0.17,131.62,131.59,18.998]
[1720190017211,20.0000939,131.64,131.59,18.998]
[1720190017537,0.17,131.63,131.6,7.5985]
[1720190017911,20.0000939,131.64,131.61,7.5979]
[1720190018217,9.39e-05,131.64,131.61,18.9952]
[1720190018424,9.39e-05,131.64,131.63,7.597]
[1720190018815,9.39e-05,131.64,131.58,100.0]
[1720190019019,9.39e-05,131.64,131.62,7.5975]
[1720190019512,9.39e-05,131.64,131.62,7.5974]
[1720190019931,9.39e-05,131.64,131.62,26.5913]
[1720190020135,9.39e-05,131.64,131.63,7.597]
[1720190021534,9.39e-05,131.64,131.62,18.9939]
[1720190021841,9.39e-05,131.64,131.62,26.5913]
[1720190022338,9.39e-05,131.64,131.63,7.597]
[1720190026947,0.1,131.69,131.64,100.0]
[1720190027153,0.1,131.69,131.68,26.5795]
[1720190030360,0.1,131.69,131.68,18.9854]
[1720190030651,0.1,131.69,131.68,26.5795]
[1720190031025,0.1,131.69,131.62,59.4219]
[1720190031348,0.1,131.69,131.66,7.5948]
[1720190031547,0.1,131.69,131.66,26.583]
[1720190031852,0.1,131.69,131.62,37.9869]
[1720190032054,20.1,131.69,131.64,7.5961]
[1720190032350,0.17,131.68,131.65,7.5958]
[1720190033948,0.17,131.68,131.64,18.9897]
[1720190034148,20.1,131.69,131.66,7.5952]
[1720190034356,20.1,131.69,131.67,7.5947]
[1720190034527,0.1,131.69,131.66,18.9882]
[1720190034732,0.27,131.69,131.66,26.5829]
[1720190035253,0.27,131.69,131.66,26.5832]
[1720190035455,0.1,131.69,131.68,26.5795]
[1720190035832,0.1,131.69,131.66,7.5949]
[1720190036337,0.1,131.69,131.65,18.9891]
[1720190036661,0.1,131.69,131.63,7.5968]
[1720190036824,7.8636,131.69,131.62,56.9796]
[1720190037226,20.0,131.68,131.64,18.9906]
[1720190037528,20.27,131.69,131.65,7.5953]
[1720190037738,20.0,131.68,131.65,7.5953]
[1720190038232,20.0,131.68,131.66,7.5953]
[1720190039259,20.0,131.68,131.65,7.5957]
[1720190040134,20.0,131.68,131.66,7.5952]
[1720190040350,20.0,131.68,131.67,7.5947]
[1720190040769,20.0,131.68,131.63,18.9914]
[1720190040932,20.0,131.68,131.64,7.5962]
[1720190041136,20.0,131.68,131.57,100.0]
[1720190041360,7.596,131.65,131.6,7.5987]
[1720190041661,20.0,131.64,131.61,7.5981]
[1720190041837,20.0,131.64,131.6,26.5952]
[1720190042258,20.0,131.65,131.6,18.9967]
[1720190042463,20.0,131.66,131.58,408.9348]
[1720190042775,20.0,131.66,131.61,7.5981]
[1720190042776,0.17,131.65,131.61,7.5981]
[1720190042975,7.5948,131.67,131.62,7.5975]
[1720190043156,20.17,131.66,131.62,7.5975]
[1720190043359,20.17,131.66,131.61,26.5934]
[1720190043684,20.17,131.66,131.62,7.5975]
[1720190044182,20.0,131.66,131.63,7.597]
[1720190044390,20.0,131.67,131.63,7.597]
[1720190044682,20.0,131.67,131.65,7.5958]
[1720190044868,20.0,131.68,131.63,18.9921]
[1720190045180,7.5949,131.67,131.62,7.5976]
[1720190045487,20.0,131.66,131.63,7.5969]
[1720190045659,8.00983517,131.69,131.63,7.5969]
[1720190045660,8.00983517,131.69,131.67,7.5943]
[1720190045860,0.1,131.69,131.59,37.9955]
[1720190046065,0.1,131.69,131.63,18.9925]
[1720190046066,8.0072993,131.69,131.63,18.9925]
[1720190046285,7.5945,131.68,131.63,26.589]
[1720190046493,8.0072993,131.69,131.63,18.9925]
[1720190046781,7.5953,131.66,131.61,7.5979]
[1720190046965,7.595,131.67,131.62,7.5975]
[1720190047158,7.5944,131.68,131.63,7.5969]
[1720190047576,20.17,131.67,131.63,7.5969]
[1720190047775,20.0,131.67,131.63,7.5969]
[1720190047977,27.5947,131.67,131.62,26.5899]
[1720190048192,0.17,131.66,131.63,7.5969]
[1720190048486,20.0,131.67,131.62,18.9926]
[1720190048682,20.17,131.68,131.64,7.5964]
[1720190049265,20.0,131.68,131.65,7.5957]
[1720190049681,20.0,131.68,131.64,26.5869]
[1720190049988,7.5953,131.67,131.61,26.5921]
[1720190050181,20.0,131.66,131.62,7.5974]
[1720190050471,20.0,131.66,131.64,7.5963]
[1720190050886,20.0,131.68,131.63,18.9921]
[1720190051069,27.5941,131.68,131.63,26.5888]
[1720190051588,20.0,131.68,131.64,7.5964]
[1720190052092,27.5941,131.68,131.64,7.5964]
[1720190052278,27.5941,131.68,131.63,26.5889]
[1720190052996,20.0,131.68,131.65,18.9893]
[1720190053160,0.1,131.69,131.67,7.5947]
[1720190053361,0.1,131.69,131.66,18.9869]
[1720190053588,0.1,131.69,131.67,7.5944]
[1720190055073,0.1,131.69,131.68,7.5941]
[1720190055282,0.0001,131.69,131.68,26.5795]
[1720190055457,8.4537939,131.77,131.71,7.5922]
[1720190055659,0.8646939,131.77,131.72,26.571]
[1720190056965,0.8646939,131.77,131.72,18.9794]
[1720190057196,0.8646939,131.77,131.75,7.59]
[1720190057364,0.8646939,131.77,131.74,26.5668]
[1720190058572,0.8646939,131.77,131.74,18.9763]
[1720190059089,20.8646939,131.77,131.74,18.9763]
[1720190059458,20.3646939,131.77,131.74,18.9763]
[1720190059677,20.3646939,131.77,131.71,18.9796]
[1720190059965,20.3646939,131.77,131.67,100.0]
[1720190059966,7.5907,131.74,131.69,7.5932]
[1720190060361,7.5903,131.75,131.7,7.5929]
[1720190060592,20.0,131.74,131.7,7.5929]
[1720190060996,20.0,131.74,131.71,7.5923]
[1720190061286,27.5905,131.75,131.7,26.5746]
[1720190061486,0.3646939,131.77,131.65,60.6893]
[1720190061487,0.3646939,131.77,131.76,7.5895]
[1720190062703,7.90355626,131.83,131.76,21.5178]
[1720190062868,43.61,131.95,131.76,21.5178]
[1720190062869,0.1,131.89,131.88,7.5826]
[1720190063567,0.4646939,131.91,131.9,7.5815]
[1720190065388,0.4646939,131.91,131.9,45.489]
[1720190065566,4.71633484,131.98,131.93,7.5792]
[1720190065762,0.1,131.99,131.91,7.5807]
[1720190065763,7.5779,131.97,131.91,7.5807]
[1720190065983,0.1,131.99,131.89,18.9546]
[1720190066188,5.25398931,131.99,131.89,18.9546]
[1720190066393,7.5798,131.93,131.87,7.5827]
[1720190066599,7.5798,131.93,131.86,18.9591]
[1720190066600,7.5809,131.91,131.82,37.9277]
[1720190066779,25.5519,131.95,131.85,7.5843]
[1720190067093,0.17,131.94,131.81,6.2592]
[1720190067299,0.17,131.94,131.86,18.9585]
[1720190067469,20.17,131.94,131.86,18.9585]
[1720190067790,15.8848,131.96,131.91,7.5804]
[1720190068096,15.8848,131.96,131.9,18.9531]
[1720190068280,23.4632,131.96,131.9,26.5341]
[1720190068474,15.8848,131.96,131.91,7.5809]
[1720190068788,15.8848,131.96,131.88,7.5822]
[1720190068997,7.5802,131.93,131.87,26.5403]
[1720190069181,20.0,131.92,131.88,7.5822]
[1720190069377,20.0,131.93,131.87,18.9572]
[1720190069581,0.17,131.92,131.84,18.9616]
[1720190069790,0.17,131.92,131.86,7.5837]
[1720190069791,6.3063,131.91,131.86,7.5837]
[1720190070096,20.17,131.9,131.84,26.546]
[1720190070297,20.17,131.9,131.85,7.5842]
[1720190070477,20.17,131.9,131.86,7.5835]
[1720190070799,20.17,131.9,131.85,7.5842]
[1720190071177,20.17,131.9,131.86,18.9589]
[1720190071372,20.17,131.9,131.86,26.5425]
[1720190071583,20.17,131.9,131.87,7.5832]
[1720190071895,20.0,131.9,131.86,18.9589]
[1720190072197,20.0,131.9,131.87,7.583]
[1720190072789,20.0,131.9,131.88,7.5824]
[1720190073088,6.5447,131.95,131.91,7.5809]
[1720190073275,6.5447,131.95,131.86,37.9167]
[1720190073476,14.1234,131.95,131.89,7.5817]
[1720190073672,6.5447,131.95,131.89,18.9549]
[1720190074087,6.5447,131.95,131.93,7.5797]
[1720190074298,15.8848,131.96,131.94,7.5791]
[1720190074474,15.8848,131.96,131.93,18.9492]
[1720190074675,11.73119961,131.98,131.93,18.9492]
[1720190074877,11.73119961,131.98,131.92,7.5802]
[1720190075288,7.5776,131.97,131.92,7.5802]
[1720190075504,11.73119961,131.98,131.9,18.9525]
[1720190075832,7.9984097,131.99,131.9,37.9074]
[1720190075978,7.9984097,131.99,131.97,7.5773]
[1720190076304,0.1,131.99,131.96,18.9446]
[1720190076494,0.1,131.99,131.93,18.9487]
[1720190076688,0.1,131.99,131.95,7.5785]
[1720190077075,7.6764,131.99,131.94,7.579]
[1720190077272,0.1,131.99,131.88,6.4612]
[1720190077580,6.2482,131.96,131.92,7.5803]
[1720190077892,20.17,131.95,131.91,18.9521]
[1720190078090,20.17,131.95,131.93,18.949]
[1720190078281,20.17,131.95,131.91,7.5806]
[1720190078604,20.17,131.95,131.9,26.5339]
[1720190078793,20.17,131.95,131.91,7.5808]
[1720190079198,20.17,131.95,131.9,18.9526]
[1720190079505,20.17,131.95,131.91,7.5808]
[1720190079885,20.0,131.95,131.92,18.9505]
[1720190080083,20.0,131.95,131.92,26.5306]
[1720190080292,20.0,131.95,131.89,18.9539]
[1720190080495,27.5786,131.95,131.9,7.5813]
[1720190080696,7.5797,131.93,131.89,18.9539]
[1720190080895,0.17,131.94,131.86,18.959]
[1720190081206,0.17,131.94,131.84,43.9445]
[1720190081207,7.582,131.9,131.85,7.5842]
[1720190081392,20.17,131.89,131.85,7.5842]
[1720190081704,0.1,131.99,131.95,7.5784]
[1720190081879,0.1,131.99,131.93,18.9489]
[1720190082085,0.1,131.99,131.93,26.5281]
[1720190082399,0.1,131.99,131.93,18.9489]
[1720190082715,0.1,131.99,131.9,6.156]
[1720190083005,0.1,131.99,131.97,18.9431]
[1720190083405,0.1,131.99,131.98,7.5769]
[1720190083910,0.1,131.99,131.97,26.5204]
[1720190084207,0.1,131.99,131.97,7.5772]
[1720190084383,0.1,131.99,131.93,37.8969]
[1720190084384,0.1,131.99,131.98,7.5769]
[1720190087004,0.1,131.99,131.96,18.9444]
[1720190087214,0.1,131.99,131.97,7.5772]
[1720190087386,0.1,131.99,131.98,7.5769]
[1720190087584,0.1,131.99,131.96,18.9444]
[1720190088088,0.1,131.99,131.98,7.5769]
[1720190088292,0.1,131.99,131.96,18.9444]
[1720190088495,0.1,131.99,131.95,7.5783]
[1720190088697,26.288,131.99,131.9,18.9529]
[1720190088887,6.288,131.99,131.88,100.0]
[1720190089088,6.288,131.99,131.95,26.5244]
[1720190089404,20.0,131.98,131.96,7.578]
[1720190089621,20.0,131.98,131.92,18.9496]
[1720190089791,20.0,131.98,131.94,7.579]
[1720190089989,20.0,131.98,131.94,18.9472]
[1720190090201,20.1,131.99,131.95,7.5785]
[1720190090388,0.17,131.98,131.94,26.5258]
[1720190090786,0.17,131.98,131.94,18.9472]
[1720190090994,7.5789,131.95,131.9,7.581]
[1720190091193,0.17,131.98,131.9,7.581]
[1720190091194,0.17,131.94,131.9,7.581]
[1720190091400,7.7495,131.94,131.89,7.5819]
[1720190091623,7.7495,131.94,131.86,6.5114]
[1720190091624,0.17,131.94,131.9,7.5813]
[1720190091784,0.17,131.94,131.91,7.5807]
[1720190091983,20.17,131.95,131.92,7.5802]
[1720190092589,0.17,131.95,131.92,7.5802]
[1720190093004,0.17,131.95,131.91,26.5326]
[1720190093409,0.17,131.95,131.88,18.9553]
[1720190093622,7.749,131.95,131.9,7.5814]
[1720190094211,7.749,131.95,131.88,18.9553]
[1720190094212,26.1523,131.94,131.88,18.9553]
[1720190094421,0.17,131.93,131.89,7.582]
[1720190094707,20.0,131.94,131.91,7.5805]
[1720190094911,7.5781,131.96,131.91,7.5805]